fUST/lending_fUST_20241112
["ID","MTS","AMOUNT","RATE_DAILY","PERIOD"]
[341988298,1731343870935,-500.0,0.00023561,2]
[341988300,1731343870944,-500.0,0.00023561,2]
[341988302,1731343870953,-500.0,0.00023561,2]
[341988304,1731343870962,-500.0,0.00023561,2]
[341988306,1731343870971,-500.0,0.00023561,2]
[341988308,1731343870981,-504.30913051,0.00023561,2]
[341988310,1731343870990,-500.0,0.00023561,2]
[341988312,1731343871000,-500.0,0.00023561,2]
[341988314,1731343871011,-500.0,0.00023561,2]
[341988316,1731343871024,-500.0,0.00023561,2]
[341988318,1731343871036,-500.0,0.00023561,2]
[341988320,1731343871045,-500.0,0.00023561,2]
[341988322,1731343871054,-500.0,0.00023561,2]
[341988324,1731343871064,-500.0,0.00023561,2]
[341988326,1731343871074,-508.7440546,0.00023561,2]
[341988328,1731343871083,-500.0,0.00023561,2]
[341988330,1731343871092,-512.07857153,0.00023561,2]
[341988332,1731343871102,-182.96091967,0.00023561,2]
[341988334,1731343871112,-500.0,0.00023561,2]
[341988336,1731343871122,-500.0,0.00023561,2]
[341988338,1731343871131,-500.0,0.00023561,2]
[341988340,1731343871139,-500.0,0.00023561,2]
[341988342,1731343871148,-500.0,0.00023561,2]
[341988344,1731343871158,-500.0,0.00023561,2]
[341988347,1731343871167,-500.0,0.00023561,2]
[341988349,1731343871176,-500.0,0.00023561,2]
[341988350,1731343871186,-500.0,0.00023561,2]
[341988352,1731343871195,-488.15369374,0.00023561,2]
[341988354,1731343871205,-500.0,0.00023561,2]
[341988357,1731343871215,-5590.08,0.00023561,2]
[341988358,1731343871224,-500.0,0.00023561,2]
[341988360,1731343871234,-191.13,0.00023561,2]
[341988362,1731343871243,-500.0,0.00023561,2]
[341988364,1731343871252,-500.0,0.00023561,2]
[341988366,1731343871262,-500.0,0.00023561,2]
[341988368,1731343871271,-500.0,0.00023561,2]
[341988370,1731343871283,-500.0,0.00023561,2]
[341988372,1731343871292,-500.0,0.00023561,2]
[341988374,1731343871301,-1027.7,0.00023561,2]
[341988376,1731343871310,-500.0,0.00023561,2]
[341988378,1731343871320,-201.79038729,0.00023561,2]
[341988380,1731343871329,-500.0,0.00023561,2]
[341988382,1731343871339,-500.0,0.00023561,2]
[341988384,1731343871350,-500.0,0.00023561,2]
[341988386,1731343871359,-500.0,0.00023561,2]
[341988388,1731343871370,-500.0,0.00023561,2]
[341988390,1731343871380,-500.0,0.00023561,2]
[341988392,1731343871392,-567.84,0.00023561,2]
[341988394,1731343871401,-500.0,0.00023561,2]
[341988397,1731343871412,-500.0,0.00023561,2]
[341988399,1731343871421,-500.0,0.00023561,2]
[341988401,1731343871433,-500.0,0.00023561,2]
[341988403,1731343871443,-500.0,0.00023561,2]
[341988405,1731343871452,-648.35,0.00023561,2]
[341988407,1731343871462,-500.0,0.00023561,2]
[341988409,1731343871472,-500.0,0.00023561,2]
[341988411,1731343871481,-588.84,0.00023561,2]
[341988413,1731343871491,-500.0,0.00023561,2]
[341988415,1731343871501,-500.0,0.00023561,2]
[341988416,1731343871511,-500.0,0.00023561,2]
[341988418,1731343871520,-650.37,0.00023561,2]
[341988420,1731343871533,-500.0,0.00023561,2]
[341988422,1731343871542,-500.0,0.00023561,2]
[341988424,1731343871551,-500.0,0.00023561,2]
[341988426,1731343871560,-500.0,0.00023561,2]
[341988428,1731343871570,-500.0,0.00023561,2]
[341988430,1731343871579,-500.0,0.00023561,2]
[341988432,1731343871588,-500.0,0.00023561,2]
[341988434,1731343871598,-2494.02,0.00023561,2]
[341988436,1731343871608,-500.0,0.00023561,2]
[341988438,1731343871617,-500.0,0.00023561,2]
[341988440,1731343871627,-500.0,0.00023561,2]
[341988442,1731343871637,-500.0,0.00023561,2]
[341988444,1731343871646,-1037.77,0.00023561,2]
[341988446,1731343871655,-500.0,0.00023561,2]
[341988448,1731343871665,-450.93347643,0.00023561,2]
[341988450,1731343871674,-607.79,0.00023561,2]
[341988452,1731343871684,-500.0,0.00023561,2]
[341988454,1731343871693,-500.0,0.00023561,2]
[341988456,1731343871704,-172.857885,0.00023627,2]
[341988458,1731343871713,-56079.7532365,0.00023652,2]
[341988460,1731343871722,-420.0,0.00023711,2]
[341988462,1731343871732,-3000.0,0.00023773,2]
[341988464,1731343871742,-151.0,0.00023785,7]
[341988466,1731343871751,-151.0,0.00023785,7]
[341988468,1731343871761,-220.871663,0.00023785,7]
[341988480,1731343871859,-220.871663,0.00023785,7]
[341988482,1731343871869,-7908.76716465,0.0002382,2]
[341988484,1731343871879,-500.0,0.00023835,2]
[341988486,1731343871888,-500.0,0.00023835,2]
[341988488,1731343871897,-500.0,0.00023835,2]
[341988490,1731343871906,-500.0,0.00023835,2]
[341988492,1731343871915,-306.17366826,0.00023835,2]
[341988494,1731343871924,-500.0,0.00023835,2]
[341988496,1731343871933,-443.05469192,0.00023835,2]
[341988498,1731343871942,-500.0,0.00023835,2]
[341988500,1731343871951,-500.0,0.00023835,2]
[341988502,1731343871961,-500.0,0.00023835,2]
[341988504,1731343871970,-510.6458472,0.00023835,2]
[341988505,1731343871979,-500.0,0.00023835,2]
[341988507,1731343871988,-168.36838526,0.00023835,2]
[341988509,1731343871997,-500.0,0.00023835,2]
[341988511,1731343872007,-500.0,0.00023835,2]
[341988513,1731343872016,-500.0,0.00023835,2]
[341988516,1731343872030,-500.0,0.00023835,2]
[341988517,1731343872039,-500.0,0.00023835,2]
[341988519,1731343872049,-500.0,0.00023835,2]
[341988521,1731343872058,-500.0,0.00023835,2]
[341988523,1731343872068,-500.0,0.00023835,2]
[341988526,1731343872078,-500.0,0.00023835,2]
[341988528,1731343872087,-500.0,0.00023835,2]
[341988530,1731343872097,-500.0,0.00023835,2]
[341988532,1731343872109,-500.0,0.00023835,2]
[341988534,1731343872118,-500.0,0.00023835,2]
[341988536,1731343872127,-500.0,0.00023835,2]
[341988538,1731343872137,-513.6,0.00023835,2]
[341988540,1731343872146,-500.0,0.00023835,2]
[341988542,1731343872155,-500.0,0.00023835,2]
[341988544,1731343872164,-500.0,0.00023835,2]
[341988546,1731343872173,-500.0,0.00023835,2]
[341988548,1731343872182,-500.0,0.00023835,2]
[341988550,1731343872192,-526.55,0.00023835,2]
[341988552,1731343872201,-5590.08,0.00023835,2]
[341988554,1731343872211,-500.0,0.00023835,2]
[341988556,1731343872220,-500.0,0.00023835,2]
[341988558,1731343872230,-500.0,0.00023835,2]
[341988560,1731343872239,-500.0,0.00023835,2]
[341988562,1731343872248,-500.0,0.00023835,2]
[341988564,1731343872257,-500.0,0.00023835,2]
[341988566,1731343872266,-500.0,0.00023835,2]
[341988568,1731343872275,-1027.7,0.00023835,2]
[341988570,1731343872287,-500.0,0.00023835,2]
[341988572,1731343872296,-500.0,0.00023835,2]
[341988574,1731343872305,-500.0,0.00023835,2]
[341988576,1731343872314,-516.10437738,0.00023835,2]
[341988578,1731343872324,-500.0,0.00023835,2]
[341988580,1731343872333,-567.84,0.00023835,2]
[341988582,1731343872343,-500.0,0.00023835,2]
[341988584,1731343872353,-500.0,0.00023835,2]
[341988586,1731343872362,-317.1198113,0.00023835,2]
[341988588,1731343872371,-500.0,0.00023835,2]
[341988590,1731343872380,-500.0,0.00023835,2]
[341988592,1731343872390,-500.0,0.00023835,2]
[341988594,1731343872399,-500.0,0.00023835,2]
[341988596,1731343872408,-500.0,0.00023835,2]
[341988598,1731343872418,-500.0,0.00023835,2]
[341988600,1731343872428,-650.37,0.00023835,2]
[341988602,1731343872437,-500.0,0.00023835,2]
[341988604,1731343872446,-500.0,0.00023835,2]
[341988606,1731343872455,-500.0,0.00023835,2]
[341988608,1731343872466,-500.0,0.00023835,2]
[341988610,1731343872476,-2494.02,0.00023835,2]
[341988612,1731343872485,-500.0,0.00023835,2]
[341988614,1731343872494,-500.0,0.00023835,2]
[341988616,1731343872503,-1037.77,0.00023835,2]
[341988618,1731343872512,-500.0,0.00023835,2]
[341988620,1731343872522,-500.0,0.00023835,2]
[341988622,1731343872534,-781.75382864,0.00023842,2]
[341988624,1731343872543,-176.0491433,0.00023842,2]
[341988645,1731343872862,-500.0,0.00021917,2]
[341988648,1731343872872,-500.0,0.00021917,2]
[341988649,1731343872881,-500.0,0.00022191,2]
[341988651,1731343872890,-500.0,0.00022465,2]
[341988653,1731343872899,-500.0,0.00022465,2]
[341988655,1731343872908,-500.0,0.00022465,2]
[341988657,1731343872917,-500.0,0.00022739,2]
[341988659,1731343872927,-504.37119704,0.00022739,2]
[341988661,1731343872937,-500.0,0.00022739,2]
[341988663,1731343872946,-381.71737911,0.00022739,2]
[341988665,1731343872955,-500.0,0.00023013,2]
[341988667,1731343872964,-500.0,0.00023013,2]
[341988669,1731343872973,-500.0,0.00023287,2]
[341988671,1731343872982,-586.14,0.00023287,2]
[341988673,1731343872991,-500.0,0.00023561,2]
[341988675,1731343873001,-500.0,0.00023835,2]
[341988677,1731343873011,-187.70496883,0.00023842,2]
[341988679,1731343873024,-283.76445502,0.00023842,2]
[341989683,1731344024636,1000.0,0.00027,60]
[341989684,1731344039350,1000.0,0.00027,70]
[341989685,1731344092848,24900.0,0.00020816,2]
[341989686,1731344158142,184.104239,0.00020836,2]
[341989687,1731344195063,1169.27083333,0.00020845,2]
[341989688,1731344320042,169.563301,0.00013973,2]
[341989690,1731344462791,203.9974,0.0001,2]
[341989691,1731344515836,1169.27083333,0.00020845,2]
[341989692,1731344686523,869.596584,0.00020809,2]
[341989696,1731344827394,1169.27083333,0.00020845,2]
[341989699,1731344843431,24900.0,0.00020844,2]
[341989701,1731345019191,169.563301,0.00013973,2]
[341989727,1731345031862,-416.985,0.00020845,2]
[341989729,1731345031873,-752.28583333,0.00020845,2]
[341989731,1731345031882,-258.6373018,0.00020867,2]
[341989733,1731345031894,-869.596584,0.00021494,2]
[341989735,1731345031903,-169.547,0.00021497,2]
[341989737,1731345031913,-184.4325,0.00021497,2]
[341989739,1731345031922,-3168.0,0.00021679,2]
[341989741,1731345031931,-300.0,0.00021916,2]
[341989743,1731345031940,-1000.23890277,0.00021917,2]
[341989745,1731345031949,-523.73315826,0.00021917,2]
[341989747,1731345031959,-500.0,0.00021917,2]
[341989749,1731345031968,-500.0,0.00021917,2]
[341989751,1731345031977,-505.87776444,0.00021917,2]
[341989753,1731345031986,-500.0,0.00021917,2]
[341989755,1731345031995,-500.0,0.00021917,2]
[341989757,1731345032004,-176.8,0.00021917,2]
[341989759,1731345032013,-500.0,0.00021917,2]
[341989761,1731345032022,-500.0,0.00021917,2]
[341989763,1731345032031,-500.0,0.00021917,2]
[341989765,1731345032040,-500.0,0.00021917,2]
[341989767,1731345032050,-500.0,0.00021917,2]
[341989769,1731345032059,-500.0,0.00021917,2]
[341989770,1731345032068,-500.0,0.00021917,2]
[341989772,1731345032077,-500.0,0.00021917,2]
[341989773,1731345032086,-500.0,0.00021917,2]
[341989774,1731345032095,-500.0,0.00021917,2]
[341989775,1731345032104,-500.0,0.00021917,2]
[341989777,1731345032113,-500.0,0.00021917,2]
[341989779,1731345032122,-500.0,0.00021917,2]
[341989780,1731345032131,-456.62144706,0.00021917,2]
[341989782,1731345032150,-43.37855294,0.00021917,2]
[341989784,1731345032159,-500.0,0.00021917,2]
[341989786,1731345032169,-500.0,0.00021917,2]
[341989788,1731345032178,-500.0,0.00021917,2]
[341989790,1731345032186,-500.0,0.00021917,2]
[341989792,1731345032195,-500.0,0.00021917,2]
[341989794,1731345032204,-368.48544767,0.00021917,2]
[341989796,1731345032213,-500.0,0.00021917,2]
[341989798,1731345032223,-500.0,0.00021917,2]
[341989800,1731345032232,-500.0,0.00021917,2]
[341989802,1731345032240,-500.0,0.00021917,2]
[341989804,1731345032249,-508.88495406,0.00021917,2]
[341989805,1731345032258,-500.0,0.00021917,2]
[341989807,1731345032268,-500.0,0.00021917,2]
[341989809,1731345032277,-612.15162885,0.00021917,2]
[341989811,1731345032286,-500.0,0.00021917,2]
[341989813,1731345032295,-500.0,0.00021917,2]
[341989815,1731345032304,-500.0,0.00021917,2]
[341989817,1731345032314,-404.45380516,0.00021917,2]
[341989819,1731345032324,-500.0,0.00021917,2]
[341989821,1731345032333,-500.0,0.00021917,2]
[341989823,1731345032343,-500.0,0.00021917,2]
[341989826,1731345032352,-500.0,0.00021917,2]
[341989828,1731345032361,-500.0,0.00021917,2]
[341989830,1731345032371,-2336.0,0.00021917,2]
[341989832,1731345032381,-454.65579123,0.00021917,2]
[341990141,1731345038014,-216.96747708,0.00021816,2]
[341990143,1731345038024,-45.34420877,0.00021917,2]
[341990145,1731345038033,-500.0,0.00021917,2]
[341990147,1731345038043,-500.0,0.00021917,2]
[341990149,1731345038053,-500.0,0.00021917,2]
[341990151,1731345038062,-500.0,0.00021917,2]
[341990153,1731345038072,-500.0,0.00021917,2]
[341990154,1731345038082,-500.0,0.00021917,2]
[341990157,1731345038092,-500.0,0.00021917,2]
[341990159,1731345038102,-500.0,0.00021917,2]
[341990161,1731345038111,-500.0,0.00021917,2]
[341990163,1731345038121,-500.0,0.00021917,2]
[341990165,1731345038132,-500.0,0.00021917,2]
[341990166,1731345038141,-500.0,0.00021917,2]
[341990168,1731345038154,-500.0,0.00021917,2]
[341990170,1731345038164,-265.90133589,0.00021917,2]
[341990172,1731345038173,-500.0,0.00021917,2]
[341990174,1731345038182,-500.0,0.00021917,2]
[341990176,1731345038192,-500.0,0.00021917,2]
[341990179,1731345038201,-500.0,0.00021917,2]
[341990180,1731345038210,-145.69093071,0.00021917,2]
[341990194,1731345038326,168.737,0.0002321,70]
[341990236,1731345038849,168.98,0.0002385,60]
[341990256,1731345043554,-5197.41406292,0.00021817,2]
[341990257,1731345043564,-216.96747708,0.00021817,2]
[341990259,1731345043573,-354.30906929,0.00021917,2]
[341990260,1731345043583,-500.0,0.00021917,2]
[341990261,1731345043592,-500.0,0.00021917,2]
[341990262,1731345043602,-500.0,0.00021917,2]
[341990263,1731345043611,-500.0,0.00021917,2]
[341990264,1731345043620,-500.0,0.00021917,2]
[341990265,1731345043630,-500.0,0.00021917,2]
[341990266,1731345043639,-501.89465473,0.00021917,2]
[341990267,1731345043650,-500.0,0.00021917,2]
[341990268,1731345043660,-500.0,0.00021917,2]
[341990269,1731345043669,-573.14,0.00021917,2]
[341990270,1731345043678,-500.0,0.00021917,2]
[341990271,1731345043687,-500.0,0.00021917,2]
[341990272,1731345043697,-500.0,0.00021917,2]
[341990273,1731345043707,-500.0,0.00021917,2]
[341990274,1731345043716,-500.0,0.00021917,2]
[341990275,1731345043725,-500.0,0.00021917,2]
[341990276,1731345043735,-500.0,0.00021917,2]
[341990277,1731345043744,-500.0,0.00021917,2]
[341990278,1731345043753,-500.0,0.00021917,2]
[341990279,1731345043762,-685.14,0.00021917,2]
[341990280,1731345043771,-500.0,0.00021917,2]
[341990281,1731345043781,-500.0,0.00021917,2]
[341990282,1731345043790,-500.0,0.00021917,2]
[341990283,1731345043799,-500.0,0.00021917,2]
[341990284,1731345043809,-500.0,0.00021917,2]
[341990285,1731345043818,-500.0,0.00021917,2]
[341990286,1731345043827,-500.0,0.00021917,2]
[341990287,1731345043837,-500.0,0.00021917,2]
[341990288,1731345043846,-270.48053537,0.00021917,2]
[341990289,1731345043871,-229.51946463,0.00021917,2]
[341990290,1731345043881,-500.0,0.00021917,2]
[341990291,1731345043891,-500.0,0.00021917,2]
[341990292,1731345043907,-500.0,0.00021917,2]
[341990293,1731345043917,-500.0,0.00021917,2]
[341990294,1731345043926,-500.0,0.00021917,2]
[341990295,1731345043936,-500.0,0.00021917,2]
[341990296,1731345043945,-500.0,0.00021917,2]
[341990297,1731345043954,-500.0,0.00021917,2]
[341990298,1731345043964,-500.0,0.00021917,2]
[341990299,1731345043973,-1865.47,0.00021917,2]
[341990300,1731345043982,-878.98,0.00021917,2]
[341990301,1731345043992,-500.0,0.00021917,2]
[341990303,1731345044001,-500.0,0.00021917,2]
[341990304,1731345044010,-500.0,0.00021917,2]
[341990305,1731345044019,-623.65,0.00021917,2]
[341990306,1731345044029,-500.0,0.00021917,2]
[341990307,1731345044038,-500.0,0.00021917,2]
[341990308,1731345044046,-328.25846637,0.00021917,2]
[341990309,1731345044067,-171.74153363,0.00021917,2]
[341990310,1731345044075,-500.0,0.00021917,2]
[341990311,1731345044085,-500.0,0.00021917,2]
[341990312,1731345044094,-500.0,0.00021917,2]
[341990313,1731345044103,-3345.56607872,0.00021917,2]
[341991105,1731345445435,-458.63,0.00030136,120]
[341991106,1731345445537,-41.37,0.00030136,120]
[341991107,1731345445560,-267.64,0.00030136,120]
[341991108,1731345445588,-999.0,0.00030136,120]
[341991109,1731345445611,-458.63,0.00030245,120]
[341991110,1731345449266,1169.27083333,0.00020845,2]
[341991111,1731345548583,999.0,0.00030136,120]
[341991112,1731345597501,674.925842,0.00020797,2]
[341991113,1731345667028,9.09,0.00031198,120]
[341991114,1731345667048,5000.0,0.00031198,120]
[341991115,1731345685904,6025.8,0.00027,60]
[341991116,1731345725619,4990.91,0.00027,60]
[341991117,1731345729194,169.563301,0.00013973,2]
[341991118,1731345761325,1169.27083333,0.00020845,2]
[341991119,1731345777432,999.0,0.00030136,120]
[341991120,1731345868559,7118.1737822,0.00020744,2]
[341991129,1731346023770,767.64,0.00030136,120]
[341991130,1731346049482,-1169.27083333,0.00020845,2]
[341991131,1731346049503,-300.0,0.00020913,2]
[341991132,1731346049525,-300.0,0.00020913,2]
[341991133,1731346049552,-24900.0,0.00020914,2]
[341991134,1731346049575,-162.213847,0.00020916,2]
[341991135,1731346049596,-5284.81670441,0.00021447,2]
[341991136,1731346049616,-199.458,0.00021459,2]
[341991137,1731346049637,-674.925842,0.00021482,2]
[341991138,1731346049656,-666.82593518,0.00021733,2]
[341991139,1731346049677,-5284.81670442,0.00021804,2]
[341991140,1731346049697,-161.11020923,0.00021817,2]
[341991141,1731346049718,-788.66,0.00021907,3]
[341991142,1731346049739,-500.0,0.00021916,2]
[341991143,1731346049759,-152.63797346,0.00021916,2]
[341991144,1731346049786,-500.0,0.00021916,2]
[341991145,1731346049812,-500.0,0.00021916,2]
[341991146,1731346049834,-500.0,0.00021916,2]
[341991147,1731346049859,-500.0,0.00021916,2]
[341991148,1731346049882,-500.0,0.00021916,2]
[341991149,1731346049903,-500.0,0.00021916,2]
[341991150,1731346049924,-651.62590534,0.00021916,2]
[341991151,1731346049948,-500.0,0.00021916,2]
[341991152,1731346049971,-500.0,0.00021916,2]
[341991153,1731346049993,-288.18806344,0.00021916,2]
[341991154,1731346050016,-500.0,0.00021916,2]
[341991155,1731346050039,-500.0,0.00021916,2]
[341991156,1731346050064,-500.0,0.00021916,2]
[341991157,1731346050086,-564.69272703,0.00021916,2]
[341991158,1731346050107,-500.0,0.00021916,2]
[341991159,1731346050130,-500.0,0.00021916,2]
[341991160,1731346050151,-500.0,0.00021917,2]
[341991161,1731346050171,-512.65151329,0.00021917,2]
[341991162,1731346050191,-500.0,0.00021917,2]
[341991163,1731346050211,-500.0,0.00021917,2]
[341991164,1731346050231,-500.0,0.00021917,2]
[341991165,1731346050252,-500.0,0.00021917,2]
[341991166,1731346050272,-500.0,0.00021917,2]
[341991167,1731346050296,-500.0,0.00021917,2]
[341991168,1731346050317,-500.0,0.00021917,2]
[341991169,1731346050337,-500.0,0.00021917,2]
[341991170,1731346050357,-500.0,0.00021917,2]
[341991171,1731346050377,-500.0,0.00021917,2]
[341991172,1731346050397,-500.0,0.00021917,2]
[341991173,1731346050417,-500.0,0.00021917,2]
[341991174,1731346050438,-230.38713235,0.00021917,2]
[341991175,1731346050459,-500.0,0.00021917,2]
[341991176,1731346050479,-500.0,0.00021917,2]
[341991177,1731346050500,-508.34916632,0.00021917,2]
[341991178,1731346050521,-500.0,0.00021917,2]
[341991179,1731346050541,-500.0,0.00021917,2]
[341991180,1731346050563,-500.0,0.00021917,2]
[341991181,1731346050582,-500.0,0.00021917,2]
[341991182,1731346050602,-500.0,0.00021917,2]
[341991183,1731346050622,-500.0,0.00021917,2]
[341991184,1731346050643,-500.0,0.00021917,2]
[341991185,1731346050663,-500.0,0.00021917,2]
[341991186,1731346050683,-500.0,0.00021917,2]
[341991187,1731346050703,-500.0,0.00021917,2]
[341991188,1731346050724,-500.0,0.00021917,2]
[341991189,1731346050744,-500.0,0.00021917,2]
[341991190,1731346050766,-351.00202682,0.00021917,2]
[341991191,1731346050787,-500.0,0.00021917,2]
[341991192,1731346050811,-537.54872056,0.00021917,2]
[341991193,1731346050831,-500.0,0.00021917,2]
[341991194,1731346050856,-500.0,0.00021917,2]
[341991195,1731346050876,-506.57958295,0.00021917,2]
[341991196,1731346050897,-500.0,0.00021917,2]
[341991197,1731346050921,-502.29713894,0.00021917,2]
[341991198,1731346050942,-500.0,0.00021917,2]
[341991199,1731346050963,-500.0,0.00021917,2]
[341991200,1731346050986,-500.0,0.00021917,2]
[341991201,1731346051116,-467.90739279,0.00021917,2]
[341991202,1731346051171,-500.0,0.00021917,2]
[341991203,1731346051192,-500.0,0.00021917,2]
[341991204,1731346051215,-418.34160926,0.00021917,2]
[341991205,1731346051235,-503.17028996,0.00021917,2]
[341991206,1731346051256,-500.0,0.00021917,2]
[341991207,1731346051276,-500.0,0.00021917,2]
[341991208,1731346051299,-253.47926751,0.00021917,2]
[341991209,1731346051319,-500.0,0.00021917,2]
[341991210,1731346051339,-500.0,0.00021917,2]
[341991211,1731346051359,-500.0,0.00021917,2]
[341991212,1731346051379,-500.0,0.00021917,2]
[341991213,1731346051400,-507.01009758,0.00021917,2]
[341991214,1731346051421,-500.0,0.00021917,2]
[341991215,1731346051441,-500.0,0.00021917,2]
[341991216,1731346051462,-500.0,0.00021917,2]
[341991217,1731346051483,-500.0,0.00021917,2]
[341991218,1731346051502,-500.0,0.00021917,2]
[341991219,1731346051522,-509.84681697,0.00021917,2]
[341991220,1731346051545,-505.96430825,0.00021917,2]
[341991221,1731346051565,-500.0,0.00021917,2]
[341991222,1731346051586,-500.0,0.00021917,2]
[341991223,1731346051606,-500.0,0.00021917,2]
[341991224,1731346051626,-500.0,0.00021917,2]
[341991225,1731346051646,-500.0,0.00021917,2]
[341991226,1731346051666,-500.0,0.00021917,2]
[341991227,1731346051687,-500.0,0.00021917,2]
[341991228,1731346051707,-502.45822808,0.00021917,2]
[341991229,1731346051728,-500.0,0.00021917,2]
[341991230,1731346051748,-500.0,0.00021917,2]
[341991231,1731346051772,-500.0,0.00021917,2]
[341991232,1731346051792,-500.009999,0.00021917,2]
[341991233,1731346051816,-500.0,0.00021917,2]
[341991234,1731346051838,-500.0,0.00021917,2]
[341991235,1731346051860,-496.38450324,0.00021917,2]
[341991236,1731346051882,-500.0,0.00021917,2]
[341991237,1731346051902,-507.41786007,0.00021917,2]
[341991238,1731346051924,-500.0,0.00021917,2]
[341991239,1731346051946,-500.0,0.00021917,2]
[341991240,1731346051970,-500.0,0.00021917,2]
[341991241,1731346051993,-500.0,0.00021917,2]
[341991242,1731346052015,-502.38294431,0.00021917,2]
[341991243,1731346052037,-409.73299288,0.00021917,2]
[341991244,1731346052060,-500.0,0.00021917,2]
[341991245,1731346052082,-500.0,0.00021917,2]
[341991246,1731346052104,-500.0,0.00021917,2]
[341991247,1731346052127,-500.0,0.00021917,2]
[341991248,1731346052149,-500.0,0.00021917,2]
[341991249,1731346052170,-500.0,0.00021917,2]
[341991250,1731346052192,-395.58629493,0.00021917,2]
[341991251,1731346052214,-500.0,0.00021917,2]
[341991252,1731346052235,-500.0,0.00021917,2]
[341991253,1731346052257,-509.25532304,0.00021917,2]
[341991254,1731346052279,-500.0,0.00021917,2]
[341991255,1731346052304,-500.0,0.00021917,2]
[341991256,1731346052324,-500.0,0.00021917,2]
[341991257,1731346052345,-508.86634493,0.00021917,2]
[341991258,1731346052368,-500.0,0.00021917,2]
[341991259,1731346052389,-500.0,0.00021917,2]
[341991260,1731346052410,-585.19657441,0.00021917,2]
[341991261,1731346052431,-500.0,0.00021917,2]
[341991262,1731346052452,-500.0,0.00021917,2]
[341991263,1731346052473,-588.87,0.00021917,2]
[341991264,1731346052494,-500.0,0.00021917,2]
[341991265,1731346052514,-500.0,0.00021917,2]
[341991266,1731346052535,-500.0,0.00021917,2]
[341991267,1731346052559,-500.0,0.00021917,2]
[341991268,1731346052580,-500.0,0.00021917,2]
[341991269,1731346052601,-503.57951531,0.00021917,2]
[341991270,1731346052622,-500.0,0.00021917,2]
[341991271,1731346052644,-500.0,0.00021917,2]
[341991272,1731346052665,-500.0,0.00021917,2]
[341991273,1731346052686,-500.0,0.00021917,2]
[341991274,1731346052707,-500.0,0.00021917,2]
[341991275,1731346052728,-500.0,0.00021917,2]
[341991276,1731346052748,-500.0,0.00021917,2]
[341991277,1731346052773,-290.0,0.00021917,2]
[341991278,1731346052799,-500.0,0.00021917,2]
[341991279,1731346052822,-500.0,0.00021917,2]
[341991280,1731346052846,-500.0,0.00021917,2]
[341991281,1731346052868,-500.0,0.00021917,2]
[341991282,1731346052890,-500.0,0.00021917,2]
[341991283,1731346052912,-1029.52473958,0.00021917,2]
[341991284,1731346052934,-500.0,0.00021917,2]
[341991285,1731346052956,-636.71,0.00021917,2]
[341991286,1731346052978,-500.0,0.00021917,2]
[341991287,1731346053000,-500.0,0.00021917,2]
[341991288,1731346053022,-621.19215958,0.00021917,2]